bitfinex-derivatives/quotes_BTCF0:USTF0_20251002
["timestamp","ask_amount","ask_price","bid_price","bid_amount"]
[1759418663795,0.02172,119380.0,119370.0,0.4804205]
[1759418663986,0.02372,119380.0,119370.0,0.4804205]
[1759418664690,0.47470787,119380.0,119370.0,0.02219]
[1759418664888,0.002,119380.0,119370.0,0.1188805]
[1759418665090,0.002,119380.0,119370.0,0.83369487]
[1759418665388,0.02435,119380.0,119370.0,0.5397828]
[1759418665593,0.002,119380.0,119370.0,0.89379717]
[1759418665988,5e-05,119390.0,119380.0,0.1192035]
[1759418666196,5e-05,119390.0,119380.0,1.66097177]
[1759418666493,0.51026635,119430.0,119420.0,0.03549]
[1759418666494,0.48980538,119430.0,119420.0,0.03549]
[1759418666682,0.23022243,119430.0,119420.0,0.1191755]
[1759418666885,0.20767005,119430.0,119420.0,0.1191755]
[1759418667094,0.20767005,119430.0,119420.0,0.1065255]
[1759418667297,0.04468221,119430.0,119420.0,0.4799755]
[1759418667899,0.1369276,119430.0,119420.0,0.4799755]
[1759418668088,0.11501539,119430.0,119420.0,0.4799755]
[1759418668294,0.11501539,119430.0,119420.0,0.03549]
[1759418668495,0.11701539,119430.0,119420.0,0.03549]
[1759418668990,0.13016539,119430.0,119420.0,0.03549]
[1759418669391,0.13816539,119430.0,119420.0,0.03549]
[1759418670099,0.12816539,119430.0,119420.0,0.03549]
[1759418670399,0.11601539,119430.0,119420.0,0.1191753]
[1759418671094,0.001,119430.0,119420.0,0.4799753]
[1759418671402,0.1074483,119430.0,119420.0,0.4799753]
[1759418671702,0.001,119430.0,119420.0,1.23398967]
[1759418671898,0.001,119430.0,119420.0,2.00154967]
[1759418672096,0.001,119430.0,119420.0,1.6475353]
[1759418672298,0.001,119430.0,119420.0,2.05393046]
[1759418672499,0.0846783,119430.0,119420.0,1.65393046]
[1759418672803,0.001,119430.0,119420.0,0.88637046]
[1759418673004,0.001,119430.0,119420.0,1.65389046]
[1759418674903,0.0846783,119430.0,119420.0,1.65389046]
[1759418675300,0.001,119430.0,119420.0,1.65389046]
[1759418676200,0.001,119430.0,119420.0,2.05389046]
[1759418678505,0.001,119430.0,119420.0,2.05321046]
[1759418678695,0.001,119430.0,119420.0,2.05313046]
[1759418679304,0.001,119430.0,119420.0,2.05305046]
[1759418679499,0.17235121,119460.0,119450.0,0.1191542]
[1759418679702,0.1064272,119460.0,119450.0,0.03549]
[1759418680100,0.1195772,119460.0,119450.0,0.03549]
[1759418680403,0.1195772,119460.0,119450.0,0.1191543]
[1759418680605,0.89677236,119460.0,119450.0,0.1191543]
[1759418680807,0.89677236,119460.0,119450.0,0.1065043]
[1759418681005,0.89577236,119460.0,119450.0,0.1065043]
[1759418681208,0.39257,119460.0,119450.0,0.1191543]
[1759418681602,0.4011134,119460.0,119450.0,0.1191543]
[1759418681896,0.02877,119460.0,119450.0,0.4799543]
[1759418682101,0.02877,119460.0,119450.0,0.88634946]
[1759418682410,0.006,119460.0,119450.0,0.88634946]
[1759418682701,0.02287,119470.0,119460.0,0.1191473]
[1759418682909,0.0001,119470.0,119460.0,1.65290246]
[1759418683396,0.0001,119470.0,119460.0,1.72116188]
[1759418683596,0.0001,119470.0,119460.0,2.12116188]
[1759418683800,0.39206979,119490.0,119480.0,0.0836434]
[1759418684006,0.47570619,119490.0,119480.0,0.1191334]
[1759418684205,0.02277,119490.0,119480.0,0.1191334]
[1759418684405,0.4672395,119500.0,119490.0,0.1191264]
[1759418684908,0.38361,119500.0,119490.0,0.1191264]
[1759418685108,4e-05,119500.0,119490.0,0.52552156]
[1759418685304,0.02281,119500.0,119490.0,0.8859264]
[1759418685805,0.51283446,119500.0,119490.0,0.8858464]
[1759418686006,0.43053731,119500.0,119490.0,0.8858464]
[1759418686209,0.02414215,119500.0,119490.0,0.8858464]
[1759418686410,0.02414215,119500.0,119490.0,0.8857664]
[1759418686607,0.00137215,119500.0,119490.0,1.73664706]
[1759418686805,0.00137215,119500.0,119490.0,1.65320156]
[1759418687205,0.00137215,119500.0,119490.0,0.39629]
[1759418687407,0.51416661,119500.0,119490.0,0.8859263]
[1759418687612,0.10777145,119500.0,119490.0,0.1191263]
[1759418687809,0.10777145,119500.0,119490.0,0.8866063]
[1759418688011,0.02414215,119500.0,119490.0,0.1191263]
[1759418688213,0.10777145,119500.0,119490.0,0.03549]
[1759418688419,0.10777145,119500.0,119490.0,0.80289]
[1759418688711,0.52731661,119500.0,119490.0,0.02284]
[1759418688899,0.1064063,119490.0,119480.0,0.4799316]
[1759418689915,0.10773845,119490.0,119480.0,0.4799316]
[1759418690212,0.10773845,119490.0,119480.0,0.4829316]
[1759418690412,0.10773845,119490.0,119480.0,0.4859316]
[1759418690708,1.28808361,119490.0,119480.0,0.02884]
[1759418690908,1.28808361,119490.0,119480.0,0.006]
[1759418691309,0.1064273,119460.0,119450.0,0.4799516]
[1759418691608,0.1195773,119460.0,119450.0,0.03549]
[1759418691806,0.52597246,119460.0,119450.0,0.1191543]
[1759418692008,0.52730461,119460.0,119450.0,0.1191543]
[1759418692602,0.52730461,119460.0,119450.0,0.52554946]
[1759418692603,0.00133215,119460.0,119450.0,0.52554946]
[1759418692807,0.00133215,119460.0,119450.0,1.28634946]
[1759418693012,0.00133215,119460.0,119450.0,1.29134946]
[1759418693214,0.8221108,119490.0,119480.0,0.1191329]
[1759418693215,0.1064064,119490.0,119480.0,0.1191329]
[1759418693713,0.1064064,119490.0,119480.0,0.03549]
[1759418693904,1.28675156,119490.0,119480.0,0.02284]
[1759418694112,1.28675156,119490.0,119480.0,0.03549]
[1759418694410,1.28675156,119490.0,119480.0,0.1191333]
[1759418694716,0.38357,119490.0,119480.0,0.1191333]
[1759418694914,0.4692063,119490.0,119480.0,0.03549]
[1759418695217,1.28875146,119490.0,119480.0,0.1064833]
[1759418695614,1.28875146,119490.0,119480.0,0.0836433]
[1759418695615,1.28975146,119490.0,119480.0,0.0836433]
[1759418695816,0.1055533,119480.0,119470.0,0.4802661]
[1759418697822,0.88596846,119480.0,119470.0,0.03782]
[1759418698014,1.28596846,119480.0,119470.0,0.002]
[1759418698213,2.04392671,119480.0,119470.0,0.004]
[1759418699320,2.45032187,119480.0,119470.0,0.004]
[1759418699515,0.1187873,119460.0,119450.0,0.083664]
[1759418699821,0.1187873,119460.0,119440.0,0.4571167]
[1759418699822,0.52518246,119460.0,119440.0,0.4571167]
[1759418700119,0.02191,119450.0,119440.0,0.4802867]
[1759418700514,1.2256379,119460.0,119450.0,0.0964443]
[1759418700722,1.29314306,119460.0,119450.0,0.1068343]
[1759418700917,1.29314306,119460.0,119450.0,0.02317]
[1759418701119,0.1055679,119460.0,119450.0,0.1196143]
[1759418701316,0.02191,119460.0,119450.0,0.1196143]
[1759418701621,0.02191,119470.0,119460.0,0.1196073]
[1759418701811,0.42830516,119470.0,119460.0,0.1196073]
[1759418702011,0.88597536,119470.0,119460.0,0.02317]
[1759418702210,0.52517536,119470.0,119460.0,0.1068273]
[1759418702410,0.02191,119470.0,119460.0,0.1196073]
[1759418702615,0.42830516,119470.0,119460.0,0.1196073]
[1759418703811,0.38271,119480.0,119470.0,0.1196002]
[1759418704618,0.02191,119480.0,119470.0,0.1196002]
[1759418705724,0.02191,119480.0,119470.0,0.1236002]
[1759418706023,0.1055532,119480.0,119470.0,0.1236002]
[1759418706231,0.02191,119480.0,119470.0,0.1236002]
[1759418706620,0.1055532,119480.0,119470.0,0.1236002]
[1759418706816,0.1187732,119480.0,119470.0,0.03995]
[1759418707016,0.1187732,119480.0,119470.0,0.1236002]
[1759418707420,0.1187732,119480.0,119470.0,0.4844002]
[1759418707727,0.1055532,119480.0,119470.0,0.4844002]
[1759418708125,1.234951,119490.0,119480.0,0.1195932]
[1759418708320,1.25679957,119490.0,119480.0,0.1195932]
[1759418708726,0.1055532,119480.0,119470.0,0.4843966]
[1759418709125,0.02191,119480.0,119470.0,0.4803966]
[1759418709321,1.64134566,119490.0,119480.0,0.03595]
[1759418709523,1.66320468,119490.0,119480.0,0.03595]
[1759418709819,1.67642468,119490.0,119480.0,0.02317]
[1759418710029,1.67642468,119490.0,119480.0,0.03595]
[1759418710431,0.48820952,119490.0,119480.0,0.1195932]
[1759418710630,1.25660952,119490.0,119480.0,0.1195932]
[1759418710830,0.89580952,119490.0,119480.0,0.1195932]
[1759418711033,0.8739505,119490.0,119480.0,0.1195932]
[1759418711232,0.1055462,119490.0,119480.0,0.52598836]
[1759418711930,1.01190912,119500.0,119490.0,0.1195862]
[1759418712231,1.03374489,119500.0,119490.0,0.52598136]
[1759418712441,1.03374489,119500.0,119490.0,0.1195862]
[1759418712840,0.98999912,119500.0,119490.0,0.92598136]
[1759418713043,0.98999912,119500.0,119490.0,1.28678136]
[1759418713235,0.99299912,119500.0,119490.0,1.28678136]
[1759418713936,0.99299912,119500.0,119490.0,2.05490136]
[1759418714145,0.99299912,119500.0,119490.0,2.12117679]
[1759418714343,0.99299912,119500.0,119490.0,2.20486229]
[1759418715041,0.95799912,119500.0,119490.0,2.20486229]
[1759418715249,0.35414131,119500.0,119490.0,2.29808615]
[1759418715441,0.31914131,119500.0,119490.0,2.28530615]
[1759418715639,0.28114131,119500.0,119490.0,2.28530615]
[1759418715837,0.25936131,119500.0,119490.0,2.34550005]
[1759418716237,0.25764131,119500.0,119490.0,2.34594005]
[1759418716644,0.25764131,119500.0,119490.0,2.34590005]
[1759418716840,0.25764131,119500.0,119490.0,2.28570615]
[1759418717249,0.25764131,119500.0,119490.0,1.57708208]
[1759418717443,0.25764131,119500.0,119490.0,2.34556208]
[1759418718453,0.02751733,119510.0,119500.0,0.0836293]
[1759418718743,0.02751733,119510.0,119500.0,1.31067502]
[1759418718950,0.02751733,119510.0,119500.0,3.86719184]
[1759418719154,0.02751733,119510.0,119500.0,3.95087734]
[1759418719648,0.03051733,119510.0,119500.0,4.29742194]
[1759418719943,0.01322,119530.0,119520.0,0.0836152]
[1759418720150,0.01322,119530.0,119520.0,2.38648552]
[1759418720349,0.0147157,119530.0,119520.0,2.8760884]
[1759418720551,0.0147157,119530.0,119520.0,2.9597669]
[1759418721338,0.0366257,119530.0,119520.0,0.89488138]
[1759418721545,0.1202339,119530.0,119520.0,0.76832]
[1759418721854,0.0366257,119530.0,119520.0,0.8519352]
[1759418722149,0.03570365,119530.0,119520.0,1.25833036]
[1759418723240,0.03570365,119530.0,119520.0,0.49001036]
[1759418723446,0.03570365,119530.0,119520.0,1.25829036]
[1759418723745,0.1200053,119520.0,119500.0,0.4444223]
[1759418724045,0.03639,119510.0,119500.0,0.93448896]
[1759418724253,0.03900045,119510.0,119500.0,1.70264896]
[1759418724649,0.01579045,119510.0,119500.0,2.10264896]
[1759418724945,0.01579045,119510.0,119500.0,1.6962538]
[1759418725148,0.01579045,119510.0,119500.0,2.10264896]
[1759418725348,0.01779045,119510.0,119500.0,2.10264896]
[1759418725854,0.01779045,119510.0,119500.0,2.1990054]
[1759418726047,0.01779045,119510.0,119500.0,1.79261024]
[1759418726247,0.01779045,119510.0,119500.0,2.1990054]
[1759418726454,0.01579045,119510.0,119500.0,2.1990054]
[1759418728954,0.01579045,119510.0,119500.0,2.1987254]
[1759418729454,0.01579045,119510.0,119500.0,1.4308454]
[1759418729657,0.01579045,119510.0,119500.0,2.1986054]
[1759418730255,0.01579045,119510.0,119500.0,1.0308454]
[1759418730456,0.01579045,119510.0,119500.0,1.7985654]
[1759418730654,0.01579045,119510.0,119500.0,1.39217024]
[1759418730856,0.01579045,119510.0,119500.0,1.7985654]
[1759418731052,0.01579045,119510.0,119500.0,1.7984854]
[1759418731452,0.01579045,119510.0,119500.0,2.1984854]
[1759418731649,0.01579045,119510.0,119500.0,1.79209024]
[1759418731854,0.01579045,119510.0,119500.0,0.93448896]
[1759418732055,0.01579045,119510.0,119500.0,1.70204896]
[1759418732255,0.01579045,119510.0,119500.0,1.64836335]
[1759418732753,0.01579045,119510.0,119500.0,0.88080335]
[1759418732958,0.03900045,119510.0,119500.0,0.88080335]
[1759418733160,0.03900045,119510.0,119500.0,0.58794436]
[1759418733558,0.02887203,119510.0,119500.0,1.35530436]
[1759418733759,0.02887203,119510.0,119500.0,0.58794436]
[1759418733961,0.02887203,119510.0,119500.0,1.35530436]
[1759418734161,0.02887203,119510.0,119500.0,1.64816335]
[1759418734862,0.02887203,119510.0,119500.0,1.2954538]
[1759418735058,0.02887203,119510.0,119500.0,1.70801391]
[1759418735964,0.02887203,119510.0,119500.0,0.94065391]
[1759418736166,0.02887203,119510.0,119500.0,1.70777391]
[1759418736758,0.02887203,119510.0,119500.0,1.64792335]
[1759418737263,0.02887203,119510.0,119500.0,1.70777391]
[1759418738161,0.02887203,119510.0,119500.0,1.35506436]
[1759418738360,0.02887203,119510.0,119500.0,1.70777391]
[1759418738965,0.0135,119510.0,119500.0,1.70749391]
[1759418739163,0.0135,119510.0,119500.0,1.64764335]
[1759418739653,0.0135,119510.0,119500.0,1.86338733]
[1759418739863,0.0135,119510.0,119500.0,2.14106395]
[1759418740163,0.0135,119510.0,119500.0,2.21609688]
[1759418741164,0.0135,119510.0,119500.0,2.14106395]
[1759418741864,0.0135,119510.0,119500.0,2.21609688]
[1759418742464,0.0135,119510.0,119500.0,1.81609688]
[1759418743261,0.0135,119510.0,119500.0,0.69654733]
[1759418743465,0.01318,119520.0,119510.0,0.0836224]
[1759418743666,0.03529,119520.0,119510.0,0.4444224]
[1759418744065,0.03529,119520.0,119510.0,1.2109024]
[1759418744265,0.03529,119520.0,119510.0,1.64729045]
[1759418744665,0.04029,119520.0,119510.0,1.64737045]
[1759418744860,0.04029,119520.0,119510.0,1.2946609]
[1759418745060,0.04029,119520.0,119510.0,1.64737045]
[1759418745265,0.03529,119520.0,119510.0,1.72240338]
[1759418745465,0.04029,119520.0,119510.0,0.60313383]
[1759418745768,0.04029,119520.0,119510.0,1.2111024]
[1759418746464,0.04029,119520.0,119510.0,0.79713195]
[1759418746668,0.01818,119520.0,119510.0,1.56381195]
[1759418746863,0.01318,119520.0,119510.0,1.63884488]
[1759418747162,0.01318,119520.0,119510.0,1.56781195]
[1759418747370,0.01318,119520.0,119510.0,1.64684488]
[1759418747567,0.01318,119520.0,119510.0,1.73051638]
[1759418747863,0.01318,119520.0,119510.0,1.72251638]
[1759418748068,0.01318,119520.0,119510.0,1.74251638]
[1759418748966,0.01318,119520.0,119510.0,2.16166022]
[1759418749363,0.01318,119520.0,119510.0,2.26657682]
[1759418749768,0.01318,119520.0,119510.0,2.16166022]
[1759418750161,0.01318,119520.0,119510.0,2.26653895]
[1759418750362,0.0031832,119530.0,119520.0,0.083619]
[1759418750569,0.0031832,119530.0,119520.0,0.90200728]
[1759418750770,0.0031832,119530.0,119520.0,1.39551883]
[1759418750971,0.0031832,119530.0,119520.0,1.47918333]
[1759418751373,0.01322,119540.0,119530.0,0.43632165]
[1759418751668,0.01322,119540.0,119530.0,1.63863578]
[1759418751973,0.01535205,119540.0,119530.0,1.81300075]
[1759418752362,0.03746205,119540.0,119530.0,0.6936512]
[1759418752563,0.03746205,119540.0,119530.0,1.72621328]
[1759418752773,0.03746205,119540.0,119530.0,0.95965328]
[1759418752972,0.03746205,119540.0,119530.0,0.60694373]
[1759418753273,0.03746205,119540.0,119530.0,0.88477915]
[1759418753474,0.03746205,119540.0,119530.0,0.5320696]
[1759418753682,0.41383782,119540.0,119530.0,1.28988623]
[1759418753872,0.42733782,119540.0,119530.0,1.28143256]
[1759418754877,0.42733782,119540.0,119530.0,0.86754211]
[1759418755076,0.42733782,119540.0,119530.0,0.51483256]
[1759418755280,0.42733782,119540.0,119530.0,1.28127256]
[1759418755576,0.4135,119540.0,119530.0,1.28127256]
[1759418755776,0.0135,119540.0,119530.0,1.71763961]
[1759418755985,0.0135,119540.0,119530.0,1.02607374]
[1759418756477,0.0135,119540.0,119530.0,0.95119961]
[1759418756681,0.0135,119540.0,119530.0,1.71775961]
[1759418757172,0.0135,119540.0,119530.0,1.36505006]
[1759418757376,0.01464853,119540.0,119530.0,1.71775961]
[1759418758278,0.03770853,119540.0,119530.0,1.71755961]
[1759418758671,0.03770853,119540.0,119530.0,1.71763961]
[1759418758867,0.03770853,119540.0,119530.0,0.95119961]
[1759418759067,0.03770853,119540.0,119530.0,1.71759961]
[1759418759779,0.03770853,119540.0,119530.0,0.59849006]
[1759418759983,0.03770853,119540.0,119530.0,1.36485006]
[1759418760282,0.03770853,119540.0,119530.0,1.77739413]
[1759418761187,0.01464853,119540.0,119530.0,1.77739413]
[1759418761371,0.01464853,119540.0,119530.0,1.87413056]
[1759418761780,0.01464853,119540.0,119530.0,2.21429604]
[1759418761984,0.01464853,119540.0,119530.0,2.28917017]
[1759418762178,0.01354,119550.0,119540.0,0.0836052]
[1759418762483,0.01354,119550.0,119540.0,0.85691518]
[1759418762775,0.01468837,119550.0,119540.0,0.95307229]
[1759418762980,0.01468837,119550.0,119540.0,1.03672979]
[1759418763182,0.01468837,119550.0,119540.0,0.97692936]
[1759418763381,0.01468837,119550.0,119540.0,1.05180349]
[1759418763576,0.01468837,119550.0,119540.0,1.37692936]
[1759418763982,0.01354,119560.0,119550.0,0.0835981]
[1759418764185,0.01323,119580.0,119570.0,0.0835841]
[1759418764378,0.01323,119580.0,119570.0,2.32441365]
[1759418764578,0.01323,119580.0,119570.0,2.49831711]
[1759418764776,0.01323,119580.0,119570.0,2.55808201]
[1759418765075,0.01323,119580.0,119570.0,4.25432201]
[1759418765280,0.01623,119580.0,119570.0,1.73179711]
[1759418765582,0.01623,119580.0,119570.0,4.19479711]
[1759418765884,0.01623,119580.0,119570.0,0.97908756]
[1759418766186,0.03929,119580.0,119570.0,2.09859711]
[1759418766386,0.01623,119580.0,119570.0,2.09859711]
[1759418766979,0.01619,119580.0,119570.0,2.56492849]
[1759418767181,0.01327,119590.0,119580.0,0.0835771]
[1759418767388,0.01327,119590.0,119580.0,0.79708665]
[1759418767690,0.01319,119590.0,119580.0,1.29392031]
[1759418767883,0.01319,119590.0,119580.0,1.37754983]
[1759418768078,0.01433815,119590.0,119580.0,1.38572638]
[1759418768287,0.02033815,119590.0,119580.0,1.49060511]
[1759418768586,0.01433815,119590.0,119580.0,1.46022105]
[1759418768789,0.01833815,119590.0,119580.0,1.46022105]
[1759418769788,0.02133815,119590.0,119580.0,1.46022105]
[1759418770284,0.01323,119600.0,119590.0,0.0835701]
[1759418770285,0.01319,119600.0,119590.0,0.0835701]
[1759418770492,0.01319,119600.0,119590.0,1.96367965]
[1759418770681,0.01319,119600.0,119590.0,2.13401768]
[1759418770987,0.01319,119600.0,119590.0,1.43602808]
[1759418771194,0.01319,119600.0,119590.0,0.68331853]
[1759418771381,0.01319,119600.0,119590.0,1.80286808]
[1759418771888,0.01319,119600.0,119590.0,1.80282808]
[1759418772086,0.01319,119600.0,119590.0,1.80682808]
[1759418772287,0.01319,119600.0,119590.0,0.98154553]
[1759418772490,0.01319,119600.0,119590.0,1.80782808]
[1759418773289,0.01319,119600.0,119590.0,0.98154553]
[1759418773488,0.01433815,119600.0,119590.0,1.74834553]
[1759418773888,0.01433815,119600.0,119590.0,1.74826553]
[1759418774682,0.00430963,119600.0,119590.0,1.74826553]
[1759418774881,0.00430963,119600.0,119590.0,0.98154553]
[1759418775082,0.42736963,119600.0,119590.0,0.44942252]
[1759418775784,0.42736963,119600.0,119590.0,1.21614252]
[1759418775986,0.42736963,119600.0,119590.0,0.44942252]
[1759418776207,0.42736963,119600.0,119590.0,0.53299272]
[1759418776485,0.42736963,119600.0,119590.0,1.65238227]
[1759418776684,0.42736963,119600.0,119590.0,1.29967272]
[1759418776889,0.42736963,119600.0,119590.0,0.44942252]
[1759418777093,0.42736963,119600.0,119590.0,1.65226227]
[1759418777390,0.42736963,119600.0,119590.0,0.80213207]
[1759418777581,0.42736963,119600.0,119590.0,1.21598252]
[1759418777778,0.51093283,119600.0,119590.0,0.3658]
[1759418777989,0.51093283,119600.0,119590.0,0.77148]
[1759418778582,0.42736963,119600.0,119590.0,0.005]
[1759418778782,0.42851778,119600.0,119590.0,0.77144]
[1759418779289,0.51208088,119600.0,119590.0,0.77144]
[1759418779584,0.51208088,119600.0,119590.0,0.005]
[1759418779784,0.51208088,119600.0,119590.0,0.77148]
[1759418780989,0.51208088,119600.0,119590.0,0.77156]
[1759418782489,0.86479043,119600.0,119590.0,0.005]
[1759418782899,0.51208088,119600.0,119590.0,0.005]
[1759418783085,0.86479043,119600.0,119590.0,0.005]
[1759418783481,0.0973271,119580.0,119570.0,0.06633138]
[1759418783787,0.1189641,119570.0,119560.0,0.50394162]
[1759418784096,0.1189641,119570.0,119560.0,1.18691422]
[1759418784388,0.52240855,119570.0,119560.0,0.05955422]
[1759418784587,0.51237652,119570.0,119560.0,0.05955422]
[1759418784786,0.51237652,119570.0,119560.0,7.167e-05]
[1759418785888,0.51237652,119570.0,119560.0,0.00507167]
[1759418786282,0.87317652,119570.0,119560.0,7.167e-05]
[1759418786482,0.87317652,119570.0,119560.0,0.00507167]
[1759418786888,0.51237652,119570.0,119560.0,0.00507167]
[1759418787681,0.87317652,119570.0,119560.0,0.00507167]
[1759418787886,0.87317652,119570.0,119560.0,7.167e-05]
[1759418788086,0.87917652,119570.0,119560.0,7.167e-05]
[1759418788784,0.87317652,119570.0,119560.0,0.00107167]
[1759418789591,0.87432467,119570.0,119560.0,0.00207167]
[1759418794891,0.87547282,119570.0,119560.0,0.00207167]
[1759418795189,0.87547282,119570.0,119560.0,1.25755285]
[1759418795190,0.03108872,119570.0,119560.0,1.25755285]
[1759418795494,0.00945872,119570.0,119560.0,0.93564427]
[1759418795690,0.03096872,119570.0,119560.0,0.93564427]
[1759418795995,0.03096872,119570.0,119560.0,1.61772776]
[1759418796287,0.51455272,119570.0,119560.0,0.36287167]
[1759418796492,0.92009781,119570.0,119560.0,0.00207167]
[1759418796889,0.51455272,119570.0,119560.0,0.08566267]
[1759418797795,0.43096872,119570.0,119560.0,0.08566267]
[1759418798292,0.03096872,119570.0,119560.0,0.85200776]
[1759418798594,0.03096872,119570.0,119560.0,1.25200776]
[1759418798794,0.00945872,119570.0,119560.0,1.25200776]
[1759418798989,0.00945872,119570.0,119560.0,1.33564427]
[1759418800296,0.01060687,119570.0,119560.0,1.33564427]
[1759418800594,0.01060687,119570.0,119560.0,1.74118936]
[1759418801393,0.01060687,119570.0,119560.0,1.83083586]
[1759418801594,0.01060687,119570.0,119560.0,1.89031841]
[1759418801795,0.01060687,119570.0,119560.0,1.08477332]
[1759418802096,0.01060687,119570.0,119560.0,1.70128427]
[1759418802489,0.01060687,119570.0,119560.0,0.93564427]
[1759418802688,0.03211687,119570.0,119560.0,0.53009918]
[1759418802892,0.03211687,119570.0,119560.0,0.93564427]
[1759418803192,0.01060687,119570.0,119560.0,1.70124427]
[1759418804295,0.01060687,119570.0,119560.0,2.16627191]
[1759418804492,0.01060687,119570.0,119560.0,2.56627191]
[1759418805197,0.01060687,119570.0,119560.0,1.75518173]
[1759418805396,0.01060687,119570.0,119560.0,2.16072682]
[1759418805697,0.01175509,119570.0,119560.0,2.16072682]
[1759418805890,0.01175509,119570.0,119560.0,2.10124427]
[1759418807493,0.01175509,119570.0,119560.0,2.10096427]
[1759418807792,0.01175509,119570.0,119560.0,2.10088427]
[1759418807993,0.01175509,119570.0,119560.0,1.39512682]
[1759418808187,0.01175509,119570.0,119560.0,2.16036682]
[1759418808387,0.01175509,119570.0,119560.0,1.75482173]
[1759418808893,0.01175509,119570.0,119560.0,2.16036682]
[1759418810396,0.01175509,119570.0,119560.0,1.39512682]
[1759418810597,0.01175509,119570.0,119560.0,1.76012682]
[1759418811296,0.01290331,119570.0,119560.0,1.29509918]
[1759418811497,0.03441331,119570.0,119560.0,1.70056427]
[1759418812192,0.03069534,119570.0,119560.0,0.93564427]
[1759418812494,0.02391672,119570.0,119560.0,0.52595734]
[1759418812797,0.50750082,119570.0,119560.0,1.21626267]
[1759418812986,0.50750082,119570.0,119560.0,0.77187167]
[1759418813191,0.91304591,119570.0,119560.0,0.06675596]
[1759418814599,0.91304591,119570.0,119560.0,0.06375596]
[1759418814900,0.91304591,119570.0,119560.0,0.06775596]
[1759418815598,1.27384591,119570.0,119560.0,0.06775596]
[1759418815799,0.86830082,119570.0,119560.0,0.06775596]
[1759418815999,1.27384591,119570.0,119560.0,0.06775596]
[1759418816392,1.28207721,119570.0,119560.0,0.06775596]
[1759418816593,0.86944904,119570.0,119560.0,0.15134696]
[1759418816800,1.27499413,119570.0,119560.0,0.15134696]
[1759418817001,1.27499413,119570.0,119560.0,0.06775596]
[1759418819806,1.63392904,119570.0,119560.0,0.15134696]
[1759418820001,0.50864904,119570.0,119560.0,0.15134696]
[1759418820208,1.27296904,119570.0,119560.0,0.09166267]
[1759418820405,1.27296904,119570.0,119560.0,0.45246267]
[1759418820794,0.50864904,119570.0,119560.0,0.45246267]
[1759418820999,0.50864904,119570.0,119560.0,0.51220796]
[1759418821505,0.10864894,119570.0,119560.0,0.51220796]
[1759418821706,0.02506494,119570.0,119560.0,1.68191305]
[1759418821905,0.02621316,119570.0,119560.0,1.68191305]
[1759418822095,0.10979716,119570.0,119560.0,1.68191305]
[1759418822807,0.10979716,119570.0,119560.0,1.62216776]
[1759418823302,0.10979716,119570.0,119560.0,1.68190381]
[1759418825212,0.10979716,119570.0,119560.0,1.27703872]
[1759418825511,0.10979716,119570.0,119560.0,1.21730267]
[1759418826804,0.10979716,119570.0,119560.0,0.45246267]
[1759418827206,0.02621316,119570.0,119560.0,0.45236267]
[1759418827508,0.02649188,119570.0,119560.0,0.93240243]
[1759418828112,0.02656355,119570.0,119560.0,0.52685734]
[1759418828797,0.02656355,119570.0,119560.0,0.45236267]
[1759418829307,0.51014865,119570.0,119560.0,0.45236267]
[1759418829507,0.51014865,119570.0,119560.0,0.52685734]
[1759418831004,0.51014865,119570.0,119560.0,0.45236267]
[1759418834315,0.83455525,119570.0,119560.0,0.77676927]
[1759418834912,0.83455525,119570.0,119560.0,0.33237827]
[1759418835113,1.51976185,119570.0,119560.0,0.00797167]
[1759418835518,0.1201189,119560.0,119550.0,0.0835991]
[1759418835815,0.4445255,119560.0,119550.0,0.4080057]
[1759418836017,0.4445255,119560.0,119550.0,0.0835991]
[1759418836312,0.1201189,119560.0,119550.0,0.0835991]
[1759418836512,0.03951492,119560.0,119550.0,0.4443991]
[1759418836716,0.12310702,119560.0,119550.0,0.4483991]
[1759418836914,0.12310702,119560.0,119550.0,0.4503991]
[1759418837318,0.12310702,119560.0,119550.0,0.4443991]
[1759418837619,0.12310702,119560.0,119550.0,0.4463991]
[1759418838610,0.03951492,119560.0,119550.0,0.85001786]
[1759418838818,0.01631492,119560.0,119550.0,1.25001786]
[1759418839016,0.01631492,119560.0,119550.0,2.01385786]
[1759418839216,0.01631492,119560.0,119550.0,1.6082391]
[1759418839416,0.12310702,119560.0,119550.0,1.6082391]
[1759418839616,0.12310702,119560.0,119550.0,1.2082391]
[1759418840015,0.12310702,119560.0,119550.0,1.2102391]
[1759418840322,0.12310702,119560.0,119550.0,1.2142391]
[1759418840823,0.12310702,119560.0,119550.0,1.2082391]
[1759418841022,0.12310702,119560.0,119550.0,1.2092391]
[1759418841724,0.12310702,119560.0,119550.0,1.2112391]
[1759418842224,0.12310702,119560.0,119550.0,0.4473991]
[1759418842429,0.12310702,119560.0,119550.0,1.2112791]
[1759418843719,0.12310702,119560.0,119550.0,0.4473991]
[1759418844028,0.12310702,119560.0,119550.0,0.8504791]
[1759418845425,0.03951492,119560.0,119550.0,0.8504791]
[1759418845824,0.03951492,119560.0,119550.0,1.25609786]
[1759418846224,0.03951492,119560.0,119550.0,1.61689786]
[1759418847032,0.03951492,119560.0,119550.0,1.69139253]
[1759418848027,0.03951492,119560.0,119550.0,1.61689786]
[1759418848427,0.01631492,119560.0,119550.0,1.61689786]
[1759418848627,0.01631492,119560.0,119550.0,2.01689786]
[1759418849633,0.01631492,119560.0,119550.0,2.10054137]
[1759418850330,0.01631492,119560.0,119550.0,2.17503604]
[1759418850531,0.01631492,119560.0,119550.0,2.10054137]
[1759418851025,0.01631492,119560.0,119550.0,1.41115604]
[1759418851329,0.01631492,119560.0,119550.0,2.17499604]
[1759418852232,0.01631492,119560.0,119550.0,2.12176862]
[1759418852527,0.01631492,119560.0,119550.0,1.35792862]
[1759418852731,0.01631492,119560.0,119550.0,2.12176862]
[1759418853832,0.01631492,119560.0,119550.0,1.76937728]
[1759418854032,0.01631492,119560.0,119550.0,2.12176862]
[1759418856233,0.01631492,119560.0,119550.0,2.09375473]
[1759418857734,0.01631492,119560.0,119550.0,1.32991473]
[1759418858135,0.01631492,119560.0,119550.0,2.09371473]
[1759418858531,0.0062814,119560.0,119550.0,0.52189377]
[1759418858732,0.34552892,119560.0,119550.0,1.28569377]
[1759418858932,0.03396147,119560.0,119550.0,1.28569377]
[1759418859131,0.03396147,119560.0,119550.0,1.61007122]
[1759418859331,0.03396147,119560.0,119550.0,0.84627122]
[1759418859531,0.03396147,119560.0,119550.0,1.61007122]
[1759418860232,0.03396147,119560.0,119550.0,1.53557655]
[1759418860730,0.03396147,119560.0,119550.0,0.3638]
[1759418860938,0.44193102,119560.0,119550.0,1.28589825]
[1759418861141,0.03396147,119560.0,119550.0,1.28589825]
[1759418861830,0.03396147,119560.0,119550.0,1.6102757]
[1759418862035,0.01281,119560.0,119550.0,1.6102757]
[1759418862237,0.01281,119560.0,119550.0,1.53557655]
[1759418862540,0.01281,119560.0,119550.0,2.34359751]